bitfinex/quotes_SOLUSD_20220218
["timestamp","ask_amount","ask_price","bid_price","bid_amount"]
[1645162762113,0.4391541,94.762,94.686,46.30484535]
[1645162762318,27.91893153,94.761,94.687,5.277]
[1645162762516,23.3888,94.76,94.687,5.277]
[1645162764729,48.56181339,94.759,94.687,5.277]
[1645162764931,1.49703189,94.753,94.687,5.277]
[1645162765136,1.49703189,94.749,94.687,5.277]
[1645162765331,7.40703189,94.749,94.687,5.277]
[1645162765531,1.49703189,94.748,94.687,5.277]
[1645162765730,1.49703189,94.75,94.687,5.277]
[1645162766130,1.49703189,94.749,94.688,40.38182413]
[1645162766335,1.49703189,94.75,94.688,40.38182413]
[1645162766534,1.49703189,94.746,94.688,40.38182413]
[1645162766737,1.49703189,94.747,94.688,40.38182413]
[1645162766939,1.49703189,94.745,94.688,40.38182413]
[1645162767138,27.28114994,94.744,94.688,40.38182413]
[1645162767338,32.55814994,94.744,94.687,5.277]
[1645162767740,23.7187,94.743,94.687,5.277]
[1645162767940,5.277,94.742,94.687,5.277]
[1645162768440,111.177,94.742,94.687,5.277]
[1645162768942,28.9977,94.743,94.665,5.279]
[1645162769739,28.9977,94.743,94.666,47.74805426]
[1645162771542,28.9977,94.743,94.665,5.279]
[1645162771744,28.9977,94.743,94.664,23.9699]
[1645162771942,28.9977,94.743,94.656,15.9749]
[1645162772545,28.9977,94.743,94.657,45.24832659]
[1645162772942,28.9977,94.743,94.657,47.90461251]
[1645162773144,28.9977,94.743,94.66,15.27]
[1645162774445,23.7187,94.743,94.661,5.279]
[1645162774647,23.7187,94.743,94.661,29.3254]
[1645162779361,23.7187,94.743,94.662,169.68]
[1645162779558,23.7187,94.743,94.662,172.33628592]
[1645162779757,23.7187,94.743,94.664,63.78]
[1645162779962,23.7187,94.743,94.664,169.68]
[1645162780159,23.7187,94.743,94.665,2.65628592]
[1645162780361,23.7187,94.743,94.68,15.27]
[1645162780560,23.7187,94.743,94.681,76.72356247]
[1645162781862,23.7187,94.743,94.682,66.43628592]
[1645162782861,23.7187,94.743,94.683,2.65628592]
[1645162784565,23.7187,94.743,94.684,5.279]
[1645162784767,0.4415979,94.761,94.684,5.279]
[1645162784966,0.4415979,94.761,94.685,2.65628592]
[1645162785388,0.4415979,94.761,94.686,5.277]
[1645162785766,0.4415979,94.761,94.687,2.65628592]
[1645162785968,0.4415979,94.761,94.69,31.1037]
[1645162786370,0.4415979,94.761,94.691,2.65628592]
[1645162786569,0.4415979,94.761,94.692,5.277]
[1645162786771,0.4415979,94.761,94.692,27.8655]
[1645162786972,0.4415979,94.761,94.693,2.65628592]
[1645162787373,0.4415979,94.761,94.692,22.5885]
[1645162787569,0.4415979,94.761,94.693,5.277]
[1645162787774,0.4415979,94.761,94.692,25.24478592]
[1645162793801,0.4415979,94.761,94.693,63.78]
[1645162794204,0.4415979,94.761,94.694,2.65628592]
[1645162798703,0.4415979,94.761,94.695,5.277]
[1645162798904,0.4415979,94.761,94.696,50.35550169]
[1645162800510,1.49703189,94.756,94.696,50.35550169]
[1645162800710,35.56122793,94.753,94.696,50.35550169]
[1645162800912,24.2134,94.752,94.696,50.35550169]
[1645162801313,1.49703189,94.751,94.696,50.35550169]
[1645162801514,6.77403189,94.75,94.671,24.8721]
[1645162801923,1.49703189,94.749,94.671,24.8721]
[1645162802119,5.279,94.748,94.671,24.8721]
[1645162802517,5.279,94.748,94.672,55.35472112]
[1645162802716,6.77603189,94.748,94.672,55.35472112]
[1645162802917,1.49703189,94.748,94.672,55.35472112]
[1645162803117,1.49703189,94.747,94.672,55.35472112]
[1645162803318,1.49703189,94.746,94.672,55.35472112]
[1645162803519,1.49703189,94.747,94.673,2.65628592]
[1645162803917,6.77603189,94.751,94.673,2.65628592]
[1645162804118,24.2134,94.752,94.673,2.65628592]
[1645162808226,25.71043189,94.752,94.673,2.65628592]
[1645162808427,24.2134,94.752,94.673,2.65628592]
[1645162808627,25.71043189,94.752,94.674,5.279]
[1645162809027,25.71043189,94.752,94.675,2.65628592]
[1645162809427,25.71043189,94.752,94.676,5.279]
[1645162809832,25.71043189,94.752,94.677,2.65628592]
[1645162810931,1.49703189,94.751,94.677,2.65628592]
[1645162811344,1.49703189,94.749,94.677,2.65628592]
[1645162812261,1.49703189,94.747,94.677,2.65628592]
[1645162812563,1.49703189,94.748,94.677,2.65628592]
[1645162812966,1.49703189,94.749,94.677,2.65628592]
[1645162813561,24.2134,94.752,94.677,2.65628592]
[1645162813761,24.2134,94.752,94.678,5.279]
[1645162814160,24.2134,94.752,94.679,2.65628592]
[1645162814365,24.2134,94.752,94.681,63.78]
[1645162814562,24.2134,94.752,94.683,63.78]
[1645162815065,24.2134,94.752,94.684,113.83328592]
[1645162815264,24.2134,94.752,94.69,15.834]
[1645162815463,24.2134,94.752,94.691,5.277]
[1645162815666,24.2134,94.752,94.691,7.93328592]
[1645162815862,24.2134,94.752,94.692,44.94879519]
[1645162816064,24.2134,94.752,94.693,5.277]
[1645162816263,41.41556862,94.758,94.694,24.5644]
[1645162816464,41.41556862,94.758,94.695,5.277]
[1645162816966,41.41556862,94.758,94.696,2.65628592]
[1645162817164,41.41556862,94.758,94.697,5.277]
[1645162817568,0.4415979,94.761,94.698,2.65628592]
[1645162818065,0.4415979,94.761,94.699,5.277]
[1645162818464,0.4415979,94.761,94.7,17.92628592]
[1645162818865,0.4415979,94.761,94.701,2.65628592]
[1645162819865,0.4415979,94.761,94.701,66.43628592]
[1645162820267,0.4415979,94.761,94.702,2.65628592]
[1645162823570,0.4415979,94.761,94.703,5.277]
[1645162823870,0.4415979,94.761,94.704,2.65628592]
[1645162824271,0.4415979,94.761,94.705,5.277]
[1645162824471,0.4415979,94.761,94.706,24.8002]
[1645162824670,0.4415979,94.761,94.706,27.45648592]
[1645162824871,0.4415979,94.761,94.707,2.65628592]
[1645162825675,0.4415979,94.761,94.708,44.57911196]
[1645162826074,0.4415979,94.761,94.709,2.65628592]
[1645162829179,0.4415979,94.761,94.71,15.27]
[1645162829377,0.4415979,94.761,94.714,105.9]
[1645162829578,0.4415979,94.761,94.715,5.277]
[1645162829979,0.4415979,94.761,94.715,7.93328592]
[1645162830180,0.4415979,94.761,94.716,2.65628592]
[1645162830378,0.4415979,94.761,94.717,5.277]
[1645162830777,0.4415979,94.761,94.718,25.55968592]
[1645162831179,0.4415979,94.761,94.719,7.93328592]
[1645162831580,0.4415979,94.761,94.72,2.65628592]
[1645162831780,0.4415979,94.761,94.721,5.277]
[1645162832182,0.4415979,94.761,94.723,51.83012968]
[1645162832581,0.4415979,94.761,94.724,2.65628592]
[1645162832784,0.4415979,94.761,94.724,7.93328592]
[1645162833081,0.4415979,94.761,94.725,2.65628592]
[1645162833282,0.4415979,94.761,94.726,5.277]
[1645162833683,0.4415979,94.761,94.727,2.65628592]
[1645162834786,0.4415979,94.761,94.726,5.277]
[1645162838793,0.4415979,94.761,94.726,7.93328592]
[1645162839291,0.4415979,94.761,94.726,2.65628592]
[1645162839492,0.4415979,94.761,94.727,5.277]
[1645162839690,0.4415979,94.761,94.726,2.65628592]
[1645162841499,0.4415979,94.761,94.723,51.83012968]
[1645162844002,0.4415979,94.761,94.724,2.65628592]
[1645162846616,0.4415979,94.761,94.72,15.27]
[1645162847320,0.4415979,94.761,94.721,2.65628592]
[1645162848218,0.4415979,94.761,94.722,53.65649756]
[1645162849823,22.61735512,94.761,94.72,15.27]
[1645162850321,0.4415979,94.761,94.72,15.27]
[1645162851022,0.4415979,94.761,94.718,22.9034]
[1645162851424,0.4415979,94.761,94.719,50.36681306]
[1645162852322,0.4415979,94.761,94.72,2.65628592]
[1645162856824,0.4415979,94.761,94.719,50.36681306]
[1645162857027,0.4415979,94.761,94.72,2.65628592]
[1645162860432,0.4415979,94.761,94.72,18.48518592]
[1645162865835,0.4415979,94.761,94.721,63.78]
[1645162866238,0.4415979,94.761,94.722,2.65628592]
[1645162869648,0.4415979,94.761,94.723,5.277]
[1645162869947,0.4415979,94.761,94.723,5.0401685]
[1645162870151,0.4415979,94.761,94.723,7.69645442]
[1645162872374,0.380752,94.762,94.723,7.69645442]
[1645162872572,0.380752,94.762,94.723,2.65628592]
[1645162881881,0.380752,94.762,94.72,15.27]
[1645162883684,0.380752,94.762,94.717,2.65628592]
[1645162884086,0.380752,94.762,94.718,25.55968592]
[1645162884586,0.380752,94.762,94.718,22.9034]
[1645162885787,0.380752,94.762,94.719,2.65628592]
[1645162886387,0.380752,94.762,94.718,22.9034]
[1645162886789,0.380752,94.762,94.719,2.65628592]
[1645162892402,0.380752,94.762,94.718,22.9034]
[1645162893704,5.277,94.761,94.688,2.65628592]
[1645162894103,1.49703189,94.756,94.673,15.8479]
[1645162894308,1.49703189,94.748,94.673,15.8479]
[1645162894608,105.9,94.741,94.673,69.29171917]
[1645162894912,1.49703189,94.739,94.673,69.29171917]
[1645162895107,1.49703189,94.74,94.673,69.29171917]
[1645162895306,5.279,94.739,94.674,2.65628592]
[1645162895505,1.49703189,94.74,94.674,2.65628592]
[1645162896106,25.84823189,94.741,94.673,69.29171917]
[1645162896307,105.9,94.74,94.673,53.44381917]
[1645162898525,105.9,94.74,94.655,22.7118]
[1645162898724,121.744,94.74,94.655,22.7118]
[1645162898928,121.744,94.74,94.655,25.36808592]
[1645162899327,121.744,94.74,94.656,47.43501308]
[1645162899732,121.744,94.74,94.657,2.65628592]
[1645162906836,105.9,94.74,94.657,2.65628592]
[1645162913144,105.9,94.74,94.655,22.7118]
[1645162913550,121.7441,94.74,94.655,22.7118]
[1645162913945,121.7441,94.74,94.644,2.65628592]
[1645162914147,105.9,94.738,94.626,23.9912]
[1645162914347,5.28,94.737,94.626,23.9912]
[1645162914544,105.9,94.729,94.626,23.9912]
[1645162914845,105.9,94.727,94.626,23.9912]
[1645162915044,15.8491,94.71,94.604,2.65628592]
[1645162915245,128.7781,94.709,94.604,18.13998592]
[1645162915447,134.0601,94.709,94.604,18.13998592]
[1645162915744,2.65628592,94.708,94.605,23.39634584]
[1645162915943,5.282,94.707,94.605,23.39634584]
[1645162916144,105.9,94.706,94.606,44.45321775]
[1645162916445,5.282,94.705,94.606,47.10950367]
[1645162916644,5.282,94.705,94.607,2.65628592]
[1645162917453,105.9,94.699,94.607,2.65628592]
[1645162917846,105.9,94.697,94.607,2.65628592]
[1645162918449,105.9,94.697,94.606,44.45321775]
[1645162918650,105.9,94.689,94.606,44.45321775]
[1645162919749,105.9,94.677,94.606,44.45321775]
[1645162920953,5.283,94.676,94.606,44.45321775]
[1645162921758,5.283,94.676,94.607,2.65628592]
[1645162921952,105.9,94.677,94.607,2.65628592]
[1645162922153,35.15082572,94.678,94.607,2.65628592]
[1645162924455,35.15082572,94.678,94.606,44.45321775]
[1645162926060,23.1758,94.677,94.606,44.45321775]
[1645162927762,23.1758,94.677,94.603,24.0317]
[1645162927971,5.283,94.676,94.603,24.0317]
[1645162928171,28.4588,94.677,94.603,24.0317]
[1645162929069,105.9,94.676,94.603,24.0317]
[1645162938094,105.9,94.669,94.603,24.0317]
[1645162938298,5.283,94.668,94.603,24.0317]
[1645162940898,5.283,94.668,94.601,24.7677]
[1645162942094,111.183,94.669,94.601,24.7677]
[1645162947200,105.9,94.669,94.601,24.7677]
[1645162949301,5.283,94.668,94.601,24.7677]
[1645162954409,105.9,94.659,94.601,24.7677]
[1645162954906,105.9,94.657,94.601,24.7677]
[1645162955207,105.9,94.657,94.58,44.28105903]
[1645162955405,5.284,94.656,94.581,24.0905]
[1645162956406,105.9,94.647,94.581,24.0905]
[1645162956708,105.9,94.645,94.581,24.0905]
[1645162957207,105.9,94.645,94.559,2.65628592]
[1645162957208,5.284,94.644,94.559,2.65628592]
[1645162957412,105.9,94.643,94.551,23.5827]
[1645162957610,105.9,94.629,94.551,23.5827]
[1645162958011,28.0462,94.642,94.552,2.65628592]
[1645162958012,105.9,94.627,94.552,2.65628592]
[1645162958209,105.9,94.627,94.551,23.5827]
[1645162958417,7.94128592,94.626,94.534,22.7743]
[1645162958612,105.9,94.625,94.534,22.7743]
[1645162958811,1.49703189,94.622,94.534,22.7743]
[1645162959010,5.285,94.621,94.534,22.7743]
[1645162959212,105.9,94.62,94.527,53.07113083]
[1645162959512,105.9,94.607,94.527,53.07113083]
[1645162959711,105.9,94.605,94.527,53.07113083]
[1645162960212,105.9,94.605,94.522,22.7947]
[1645162960412,5.287,94.604,94.522,22.7947]
[1645162960610,105.9,94.589,94.501,22.6512]
[1645162960913,5.288,94.588,94.501,22.6512]
[1645162961112,5.288,94.588,94.503,46.79143806]
[1645162961313,105.9,94.587,94.503,46.79143806]
[1645162961513,105.9,94.587,94.504,2.65628592]
[1645162961708,5.288,94.586,94.504,2.65628592]
[1645162962312,5.288,94.586,94.502,23.9117]
[1645162962313,105.9,94.579,94.502,23.9117]
[1645162962512,5.288,94.578,94.481,2.65628592]
[1645162962712,5.288,94.578,94.48,24.0668]
[1645162963212,5.288,94.578,94.481,2.65628592]
[1645162963413,105.9,94.576,94.482,49.93146294]
[1645162963813,105.9,94.576,94.482,52.58774886]
[1645162964216,105.9,94.569,94.482,49.93146294]
[1645162965517,111.189,94.569,94.482,49.93146294]
[1645162966416,111.189,94.569,94.483,2.65628592]
[1645162970821,111.189,94.569,94.482,49.93146294]
[1645162976151,105.9,94.559,94.482,49.93146294]
[1645162976355,105.9,94.557,94.482,49.93146294]
[1645162976549,105.9,94.557,94.48,24.0668]
[1645162976957,5.289,94.556,94.48,24.0668]
[1645162977549,5.289,94.556,94.481,46.70613112]
[1645162978452,105.9,94.547,94.481,46.70613112]
[1645162978854,24.6276,94.546,94.481,46.70613112]
[1645162979054,5.29,94.567,94.481,46.70613112]
[1645162979257,24.6276,94.567,94.482,7.94628592]
[1645162979656,24.6276,94.567,94.483,2.65628592]
[1645162979857,44.30114867,94.566,94.484,5.289]
[1645162980154,44.30114867,94.566,94.485,2.65628592]
[1645162980755,24.6276,94.567,94.485,2.65628592]
[1645162981057,24.6276,94.567,94.486,5.289]
[1645162981462,24.6276,94.567,94.487,2.65628592]
[1645162981656,50.65026889,94.566,94.487,2.65628592]
[1645162981857,50.65026889,94.566,94.488,5.289]
[1645162982255,105.9,94.565,94.489,2.65628592]
[1645162982658,50.65026889,94.566,94.49,5.289]
[1645162983059,50.65026889,94.566,94.491,25.23698592]
[1645162983457,50.65026889,94.566,94.492,7.94528592]
[1645162983857,50.65026889,94.566,94.493,2.65628592]
[1645162985159,105.9,94.565,94.493,2.65628592]
[1645162985362,50.65026889,94.566,94.493,2.65628592]
[1645162987364,105.9,94.565,94.493,2.65628592]
[1645162987563,105.9,94.565,94.491,22.5807]
[1645162988966,105.9,94.559,94.491,22.5807]
[1645162989366,5.289,94.558,94.491,22.5807]
[1645162990370,105.9,94.549,94.491,22.5807]
[1645162991076,15.8761,94.55,94.491,22.5807]
[1645162991077,105.9,94.547,94.491,22.5807]
[1645162993775,5.289,94.546,94.491,22.5807]
[1645162997784,1.49703189,94.564,94.492,5.289]
[1645162997982,105.9,94.568,94.492,13.96528592]
[1645162998284,105.9,94.568,94.493,2.65628592]
[1645162998481,1.49703189,94.593,94.494,5.289]
[1645162998679,41.93564935,94.592,94.494,5.289]
[1645162998881,105.9,94.591,94.5,31.1379]
[1645162999081,41.93564935,94.592,94.5,31.1379]
[1645162999307,41.93564935,94.592,94.501,26.10981317]
[1645162999802,41.93564935,94.592,94.502,20.82181317]
[1645163000006,41.93564935,94.592,94.503,5.288]
[1645163000204,41.93564935,94.592,94.503,7.94428592]
[1645163000405,41.93564935,94.592,94.51,15.8651]
[1645163000705,105.9,94.591,94.511,7.94428592]
[1645163000907,41.93564935,94.592,94.511,7.94428592]
[1645163001106,41.93564935,94.592,94.512,2.65628592]
[1645163001406,41.93564935,94.592,94.514,50.73626952]
[1645163001605,41.93564935,94.592,94.515,28.7836]
[1645163002404,41.93564935,94.592,94.52,15.865]
[1645163002605,41.93564935,94.592,94.521,5.287]
[1645163003904,41.93564935,94.592,94.52,15.865]
[1645163005708,41.93564935,94.592,94.52,18.52128592]
[1645163005910,5.287,94.609,94.52,18.52128592]
[1645163006111,5.287,94.615,94.52,18.52128592]
[1645163006708,111.187,94.615,94.52,18.52128592]
[1645163007110,105.9,94.613,94.52,18.52128592]
[1645163007312,5.287,94.612,94.52,18.52128592]
[1645163007512,5.287,94.613,94.52,33.79128592]
[1645163009015,111.187,94.613,94.52,31.135]
[1645163009214,2.65628592,94.612,94.515,23.4956]
[1645163009414,5.287,94.611,94.515,23.4956]
[1645163009616,105.9,94.61,94.515,23.4956]
[1645163009815,1.49703189,94.608,94.515,23.4956]
[1645163010015,105.9,94.606,94.515,23.4956]
[1645163010217,107.39703189,94.606,94.515,23.4956]
[1645163010416,105.9,94.604,94.515,23.4956]
[1645163011018,24.3046,94.605,94.515,23.4956]
[1645163011019,105.9,94.589,94.515,23.4956]
[1645163012218,105.9,94.589,94.516,2.65628592]
[1645163012517,105.9,94.604,94.516,2.65628592]
[1645163014319,105.9,94.604,94.515,23.4956]
[1645163014818,105.9,94.599,94.515,23.4956]
[1645163015419,105.9,94.599,94.516,2.65628592]
[1645163016823,105.9,94.599,94.515,23.4956]
[1645163017223,105.9,94.589,94.515,23.4956]
[1645163017722,5.288,94.588,94.515,23.4956]
[1645163018422,105.9,94.577,94.515,23.4956]
[1645163021030,105.9,94.569,94.483,15.7626]
[1645163021233,105.9,94.569,94.504,45.70271171]
[1645163023929,105.9,94.569,94.505,22.8494]
[1645163027032,15.8725,94.57,94.505,22.8494]
[1645163027234,22.973,94.577,94.505,22.8494]
[1645163027431,28.261,94.577,94.505,22.8494]
[1645163029934,28.261,94.577,94.506,2.65628592]
[1645163030134,22.973,94.577,94.506,7.94428592]
[1645163030435,22.973,94.577,94.507,2.65628592]
[1645163030832,50.37173471,94.576,94.507,2.65628592]
[1645163032338,22.973,94.577,94.51,15.8667]
[1645163037740,22.95207842,94.577,94.51,15.8667]
[1645163037938,22.95207842,94.577,94.511,2.65628592]
[1645163038639,22.95207842,94.577,94.51,15.8667]
[1645163041342,105.9,94.576,94.505,22.8494]
[1645163041540,111.188,94.576,94.486,2.65628592]
[1645163041739,111.188,94.576,94.476,24.37]
[1645163041740,1.49703189,94.564,94.476,24.37]
[1645163041942,1.49703189,94.56,94.476,24.37]
[1645163042142,1.49703189,94.558,94.476,24.37]
[1645163042339,1.49703189,94.557,94.477,47.09868779]
[1645163042544,1.49703189,94.563,94.477,47.09868779]
[1645163043344,1.49703189,94.566,94.48,15.8711]
[1645163043542,1.49703189,94.566,94.481,5.289]
[1645163043941,1.49703189,94.563,94.481,5.289]
[1645163044140,105.9,94.569,94.477,41.80968779]
[1645163044141,1.49703189,94.56,94.477,41.80968779]
[1645163044346,1.49703189,94.559,94.477,41.80968779]
[1645163044544,1.49703189,94.56,94.477,41.80968779]
[1645163044742,1.49703189,94.559,94.477,41.80968779]
[1645163044942,105.9,94.557,94.477,41.80968779]
[1645163045145,105.9,94.547,94.477,41.80968779]
[1645163045742,105.9,94.547,94.476,24.37]
[1645163046643,105.9,94.547,94.462,22.5819]
[1645163046842,105.9,94.547,94.469,48.57847718]
[1645163047543,105.9,94.539,94.462,22.5819]
[1645163048543,105.9,94.529,94.462,22.5819]
[1645163048748,105.9,94.529,94.455,41.98791885]
[1645163049544,40.38218855,94.519,94.455,41.98791885]
[1645163050556,105.9,94.518,94.455,41.98791885]
[1645163051555,105.9,94.518,94.452,23.9564]
[1645163052551,105.9,94.509,94.452,23.9564]
[1645163060967,15.8823,94.51,94.452,23.9564]
[1645163061172,40.38218855,94.519,94.452,23.9564]
[1645163061468,105.9,94.518,94.452,23.9564]
[1645163062066,128.5178,94.518,94.452,23.9564]
[1645163069387,22.6178,94.518,94.452,23.9564]
[1645163069588,1.49703189,94.545,94.452,23.9564]
[1645163069787,1.49703189,94.542,94.453,5.291]
[1645163070186,1.49703189,94.546,94.453,5.291]
[1645163070386,54.16816643,94.541,94.454,22.5042]
[1645163070590,54.16816643,94.541,94.46,15.8746]
[1645163070796,54.16816643,94.541,94.461,5.29]
[1645163070996,1.49703189,94.555,94.461,5.29]
[1645163071197,2.9811065,94.582,94.461,63.78]
[1645163071198,1.49703189,94.556,94.461,63.78]
[1645163071400,1.49703189,94.559,94.464,63.78]
[1645163071600,1.49703189,94.565,94.466,63.78]
[1645163071801,1.49703189,94.567,94.471,63.78]
[1645163071998,1.49703189,94.565,94.471,63.78]
[1645163072198,1.49703189,94.565,94.481,54.94916737]
[1645163072401,1.49703189,94.565,94.482,24.1066]
[1645163072597,56.82103097,94.566,94.482,24.1066]
[1645163072802,1.49703189,94.566,94.483,63.78]
[1645163073001,1.49703189,94.572,94.484,91.8764]
[1645163073204,1.49703189,94.573,94.49,15.8695]
[1645163073404,1.49703189,94.573,94.484,91.8764]
[1645163073405,1.49703189,94.573,94.491,5.289]
[1645163073701,128.6722,94.585,94.485,5.289]
[1645163073702,1.49703189,94.575,94.485,5.289]
[1645163074301,53.03553379,94.58,94.485,5.289]
[1645163074900,54.53256568,94.58,94.485,5.289]
[1645163075302,54.53256568,94.58,94.5,15.8674]
[1645163075500,54.53256568,94.58,94.501,23.1409]
[1645163075801,53.03553379,94.58,94.501,23.1409]
[1645163077704,53.03553379,94.58,94.51,15.866]
[1645163077907,53.03553379,94.58,94.511,51.46603233]
[1645163078105,53.03553379,94.58,94.512,22.9605]
[1645163087430,158.93553379,94.58,94.512,22.9605]
[1645163089550,174.80623379,94.58,94.487,5.288]
[1645163089751,105.9,94.578,94.488,24.7176]
[1645163089963,1.49703189,94.575,94.488,24.7176]
[1645163090158,1.49703189,94.573,94.488,24.7176]
[1645163090559,1.49703189,94.573,94.489,55.34175701]
[1645163090757,1.49703189,94.571,94.489,55.34175701]
[1645163090958,5.289,94.57,94.489,55.34175701]
[1645163091358,105.9,94.569,94.489,55.34175701]
[1645163091559,105.9,94.567,94.489,55.34175701]
[1645163093365,105.9,94.559,94.473,5.289]
[1645163093663,108.55628592,94.559,94.463,5.289]
[1645163093862,105.9,94.557,94.464,22.6575]
[1645163094063,105.9,94.555,94.464,22.6575]
[1645163094265,105.9,94.555,94.465,44.89842602]
[1645163094661,2.65628592,94.554,94.465,44.89842602]
[1645163095462,105.9,94.547,94.465,44.89842602]
[1645163095864,108.55628592,94.547,94.465,44.89842602]
[1645163096270,105.9,94.547,94.465,44.89842602]
[1645163097467,105.9,94.539,94.464,22.6575]
[1645163097669,105.9,94.539,94.451,24.2902]
[1645163097867,1.49703189,94.535,94.451,24.2902]
[1645163098068,1.49703189,94.533,94.451,24.2902]
[1645163098466,2.65628592,94.532,94.451,24.2902]
[1645163098666,105.9,94.531,94.452,54.20180509]
[1645163098869,5.291,94.53,94.452,54.20180509]
[1645163099068,105.9,94.529,94.452,54.20180509]
[1645163099366,147.29989361,94.519,94.452,54.20180509]
[1645163100667,152.59089361,94.519,94.452,54.20180509]
[1645163102168,111.191,94.519,94.452,54.20180509]
[1645163102572,5.291,94.519,94.452,54.20180509]
[1645163102873,105.9,94.537,94.452,54.20180509]
[1645163103080,105.9,94.537,94.453,23.0881]
[1645163103270,147.37822905,94.537,94.453,23.0881]
[1645163103469,41.47822905,94.537,94.453,23.0881]
[1645163104274,41.47822905,94.537,94.454,5.291]
[1645163104875,105.9,94.55,94.454,69.071]
[1645163105077,105.9,94.55,94.46,15.874]
[1645163105479,1.49703189,94.556,94.46,15.874]
[1645163105676,23.1143,94.557,94.461,5.29]
[1645163105977,53.17157383,94.556,94.461,5.29]
[1645163106176,5.29,94.555,94.46,15.874]
[1645163107476,53.17157383,94.556,94.461,5.29]
[1645163108179,53.17157383,94.556,94.47,15.8729]
[1645163108379,53.17157383,94.556,94.47,31.1429]
[1645163108781,1.49703189,94.569,94.476,63.78]
[1645163108978,1.49703189,94.571,94.49,15.27]
[1645163109185,1.49703189,94.582,94.491,45.5796]
[1645163109389,1.49703189,94.585,94.491,53.52388592]
[1645163109581,1.49703189,94.583,94.491,53.52388592]
[1645163109782,42.03467056,94.583,94.493,46.74509137]
[1645163109980,42.03467056,94.583,94.494,5.288]
[1645163110182,42.03467056,94.583,94.494,7.94428592]
[1645163110379,42.03467056,94.583,94.5,15.8672]
[1645163110781,42.03467056,94.583,94.5,18.52348592]
[1645163110985,42.03467056,94.583,94.5,25.08348592]
[1645163111283,42.03467056,94.583,94.501,5.288]
[1645163111682,42.03467056,94.583,94.502,2.65628592]
[1645163111892,42.03467056,94.583,94.503,5.288]
[1645163112088,42.03467056,94.583,94.502,2.65628592]
[1645163112289,42.03467056,94.583,94.501,5.288]
[1645163112290,42.03467056,94.583,94.504,2.65628592]
[1645163112491,42.03467056,94.583,94.505,23.497]
[1645163113091,42.03467056,94.583,94.51,15.866]
[1645163113292,24.904,94.595,94.51,15.866]
[1645163113490,24.904,94.595,94.511,7.94428592]
[1645163113893,24.904,94.595,94.512,2.65628592]
[1645163114491,52.09995418,94.596,94.512,2.65628592]
[1645163114794,52.09995418,94.596,94.52,15.8644]
[1645163114991,52.09995418,94.596,94.521,28.358]
[1645163115190,52.09995418,94.596,94.522,51.4916665]
[1645163115392,52.09995418,94.596,94.522,54.14795242]
[1645163115614,1.49703189,94.606,94.523,63.78]
[1645163115821,1.49703189,94.605,94.53,31.1326]
[1645163116019,1.49703189,94.61,94.531,174.967]
[1645163116215,1.49703189,94.616,94.531,69.067]
[1645163116415,1.49703189,94.618,94.533,63.78]
[1645163116617,28.99106344,94.638,94.534,5.285]
[1645163116618,39.16913757,94.621,94.534,5.285]
[1645163116820,39.16913757,94.621,94.534,71.72128592]
[1645163117016,39.16913757,94.621,94.534,66.43628592]
[1645163117217,39.16913757,94.621,94.535,7.94128592]
[1645163117417,1.49703189,94.63,94.55,15.8591]
[1645163117619,1.49703189,94.631,94.551,24.1361]
[1645163117817,1.49703189,94.634,94.551,24.1361]
[1645163118219,1.49703189,94.635,94.551,24.1361]
[1645163118418,55.0715555,94.634,94.552,52.8675315]
[1645163120122,55.0715555,94.634,94.56,15.8579]
[1645163126229,22.98,94.638,94.56,15.8579]
[1645163127332,49.47373467,94.637,94.56,15.8579]
[1645163131840,50.97076656,94.637,94.56,15.8579]
[1645163132242,49.47373467,94.637,94.56,15.8579]
[1645163132443,50.97076656,94.637,94.56,15.8579]
[1645163132743,49.47373467,94.637,94.56,15.8579]